bitfinex-derivatives/quotes_BNBF0:USTF0_20251010
["timestamp","ask_amount","ask_price","bid_price","bid_amount"]
[1760138251128,0.15758407,1107.2,1102.2,0.62744509]
[1760138251330,0.15758407,1107.2,1102.3,0.62744509]
[1760138251525,0.15758407,1107.2,1102.4,0.6145792]
[1760138251729,0.15758407,1107.2,1102.5,0.6145792]
[1760138252029,0.15758407,1107.2,1102.5,0.62744509]
[1760138252228,0.15758407,1107.2,1102.6,0.6145792]
[1760138252825,0.15758407,1107.2,1101.9,1.59164407]
[1760138253129,0.15758407,1107.2,1102.1,0.62744509]
[1760138253326,0.15758407,1107.2,1102.2,0.61598322]
[1760138253525,0.15758407,1107.2,1102.4,0.62744509]
[1760138253726,0.15758407,1107.2,1102.5,0.61598322]
[1760138253926,0.15758407,1107.2,1101.9,2.21908916]
[1760138254226,0.15758407,1107.2,1102.2,0.62744509]
[1760138254426,0.15758407,1107.2,1102.3,0.61499725]
[1760138254629,0.15758407,1107.2,1102.4,0.61499725]
[1760138254828,0.15758407,1107.2,1102.5,0.62744509]
[1760138255026,0.15758407,1107.2,1102.6,0.61499725]
[1760138255329,0.15758407,1107.2,1102.7,0.61499725]
[1760138255526,0.15758407,1107.2,1102.8,0.61499725]
[1760138255826,0.15758407,1107.2,1102.3,0.62744509]
[1760138256025,0.15758407,1107.2,1102.4,1.24283686]
[1760138256226,0.15758407,1107.2,1102.5,0.61539177]
[1760138256429,0.15758407,1107.2,1102.3,0.62744509]
[1760138256430,0.15758407,1107.2,1102.6,0.61539177]
[1760138256731,0.15758407,1107.2,1102.7,0.61386552]
[1760138256926,0.15758407,1107.2,1102.8,0.61386552]
[1760138257130,0.15758407,1107.2,1102.9,0.61386552]
[1760138257426,0.15758407,1107.2,1102.3,0.62744509]
[1760138257726,0.15758407,1107.2,1102.4,1.2417962]
[1760138257931,0.15758407,1107.2,1102.5,0.61435111]
[1760138258433,0.15758407,1107.2,1101.9,2.21908916]
[1760138258731,0.15758407,1107.2,1102.0,0.61526002]
[1760138258927,0.15758407,1107.2,1102.0,1.24270511]
[1760138259132,0.15758407,1107.2,1102.1,0.61526002]
[1760138259329,0.15758407,1107.2,1102.2,0.61526002]
[1760138259630,0.15758407,1107.2,1101.9,2.21908916]
[1760138259833,0.15758407,1107.2,1102.0,0.61529102]
[1760138260129,0.15758407,1107.2,1101.9,1.59164407]
[1760138260130,0.15758407,1107.2,1102.1,0.61529102]
[1760138260332,0.15758407,1107.2,1101.9,1.59164407]
[1760138260532,0.15758407,1107.2,1102.1,0.62744509]
[1760138260727,0.15758407,1107.2,1102.3,0.62744509]
[1760138260928,0.15758407,1107.2,1102.4,0.61482016]
[1760138261129,0.15758407,1107.2,1102.5,0.61482016]
[1760138261331,0.15758407,1107.2,1102.6,0.61482016]
[1760138261530,0.15758407,1107.2,1102.7,0.61482016]
[1760138261730,0.15758407,1107.2,1102.8,0.61482016]
[1760138261930,0.15758407,1107.2,1102.9,0.61482016]
[1760138262128,0.15758407,1107.2,1103.0,0.61482016]
[1760138262329,0.15758407,1107.2,1102.6,0.62744509]
[1760138262534,0.15758407,1107.2,1102.7,0.61424103]
[1760138262734,2.19486829,1109.4,1102.1,0.46995729]
[1760138262935,2.19486829,1108.9,1102.0,0.61636977]
[1760138263233,2.19486829,1108.8,1102.1,0.61636977]
[1760138263433,2.19486829,1108.8,1102.2,0.61636977]
[1760138263628,2.19486829,1108.8,1102.3,0.61636977]
[1760138263831,2.19486829,1108.5,1102.4,0.61636977]
[1760138264032,2.19486829,1108.5,1101.9,1.59164407]
[1760138264230,2.19486829,1108.5,1102.0,0.61449747]
[1760138264432,2.19486829,1108.2,1102.1,0.61449747]
[1760138264734,2.19486829,1108.2,1102.2,0.61449747]
[1760138265035,2.19486829,1108.8,1102.3,0.61449747]
[1760138265333,2.19486829,1108.8,1102.4,0.61449747]
[1760138265530,2.19486829,1108.8,1102.1,0.83688707]
[1760138265531,2.19486829,1108.5,1102.5,0.61449747]
[1760138265731,0.15755518,1107.3,1102.6,0.61449747]
[1760138266034,0.15755518,1107.3,1102.0,0.83688707]
[1760138266331,0.15755518,1107.3,1102.1,0.61530462]
[1760138266535,0.15755518,1107.3,1102.2,0.61530462]
[1760138266731,0.15755518,1107.3,1102.3,0.61530462]
[1760138266932,0.15755518,1107.3,1101.9,1.59164407]
[1760138267130,0.15755518,1107.3,1102.0,0.6071128]
[1760138267337,0.15755518,1107.3,1102.1,0.6071128]
[1760138267531,0.15755518,1107.3,1101.9,1.59164407]
[1760138267833,0.15755518,1107.3,1102.0,0.60799235]
[1760138268035,0.15755518,1107.3,1102.1,0.60799235]
[1760138268233,0.15755518,1107.3,1102.4,0.83688707]
[1760138268536,0.15755518,1107.3,1102.5,0.60799235]
[1760138268733,0.15755518,1107.3,1102.6,0.60799235]
[1760138268938,0.15755518,1107.3,1102.7,0.60799235]
[1760138269139,0.15755518,1107.3,1102.8,0.60799235]
[1760138269438,0.15755518,1107.3,1102.0,0.83688707]
[1760138269836,0.15755518,1107.3,1102.1,0.58818213]
[1760138270039,0.15755518,1107.3,1102.2,0.58818213]
[1760138270339,0.15755518,1107.3,1102.4,0.83688707]
[1760138270539,0.15755518,1107.3,1102.5,0.58818213]
[1760138270736,0.15755518,1107.3,1102.6,0.58818213]
[1760138271035,0.15755518,1107.3,1102.7,0.58818213]
[1760138271237,0.15755518,1107.3,1102.8,0.58818213]
[1760138271437,0.15755518,1107.3,1102.9,0.58818213]
[1760138271635,0.15755518,1107.3,1103.0,0.58818213]
[1760138271935,0.15755518,1107.3,1103.1,0.58818213]
[1760138272139,0.15755518,1107.3,1103.2,0.58818213]
[1760138272336,0.15755518,1107.3,1103.3,0.58818213]
[1760138272537,0.15755518,1107.3,1103.2,0.83688707]
[1760138272538,0.15755518,1107.3,1103.4,0.58818213]
[1760138272740,0.15755518,1107.3,1103.5,0.58818213]
[1760138272941,0.15755518,1107.3,1102.8,0.83688707]
[1760138273241,2.19486829,1108.0,1102.9,1.27390801]
[1760138273440,1.32816381,1106.1,1102.4,0.83688707]
[1760138273741,1.32816381,1105.9,1102.2,0.83688707]
[1760138273939,1.32816381,1105.9,1102.1,0.83688707]
[1760138274341,2.19486829,1107.1,1102.2,0.83688707]
[1760138274641,2.19486829,1107.1,1102.3,0.83688707]
[1760138275141,2.19486829,1106.9,1102.1,0.83688707]
[1760138276041,2.19486829,1106.9,1101.8,0.83688707]
[1760138276238,0.15764939,1105.8,1101.8,0.83688707]
[1760138277144,0.15764939,1105.8,1102.3,0.83688707]
[1760138277940,0.15764939,1105.8,1102.4,0.83688707]
[1760138278144,0.15764939,1105.8,1102.3,0.83688707]
[1760138278440,0.15764939,1105.8,1102.4,0.83688707]
[1760138278844,0.15764939,1105.8,1102.0,0.83688707]
[1760138279144,0.15764939,1105.8,1102.4,0.83688707]
[1760138279345,0.15764939,1105.8,1102.7,0.83688707]
[1760138279641,0.15764939,1105.8,1102.8,0.83688707]
[1760138280043,0.15764939,1105.8,1102.6,0.83688707]
[1760138280545,0.15764939,1105.8,1102.7,0.83688707]
[1760138280842,0.15764939,1105.8,1102.8,0.83688707]
[1760138281241,0.15764939,1105.8,1102.6,0.83688707]
[1760138281845,0.15764939,1105.8,1102.4,0.83688707]
[1760138282142,0.15764939,1105.8,1102.3,0.83688707]
[1760138282446,0.15764939,1105.8,1102.6,0.83688707]
[1760138282642,0.15764939,1105.8,1102.7,0.83688707]
[1760138283944,0.15764939,1105.8,1102.8,0.83688707]
[1760138284243,0.15764939,1105.8,1102.7,0.83688707]
[1760138284546,0.15764939,1105.8,1102.6,0.83688707]
[1760138284842,0.15764939,1105.8,1102.2,0.83688707]
[1760138285044,0.15764939,1105.8,1099.3,4.11960623]
[1760138285045,0.15764939,1105.8,1101.8,0.83688707]
[1760138285341,0.15764939,1105.8,1101.9,0.59018376]
[1760138285544,0.15764939,1105.8,1101.8,0.83688707]
[1760138285545,0.15764939,1105.8,1102.0,0.59018376]
[1760138285740,0.15764939,1105.8,1102.1,0.59018376]
[1760138285944,0.15764939,1105.8,1102.2,0.59018376]
[1760138286144,0.15764939,1105.8,1102.3,0.59018376]
[1760138286342,0.15764939,1105.8,1101.6,0.83688707]
[1760138286543,0.15764939,1105.8,1101.9,0.83688707]
[1760138286741,0.15764939,1105.8,1102.0,0.5904701]
[1760138287045,0.15764939,1105.8,1102.5,0.83688707]
[1760138287446,0.15764939,1105.8,1102.6,0.60636371]
[1760138287746,0.15764939,1105.8,1102.7,0.60636371]
[1760138288044,0.15764939,1105.8,1102.8,0.60636371]
[1760138288245,0.15764939,1105.8,1102.9,0.60636371]
[1760138288546,0.15764939,1105.8,1103.0,0.60636371]
[1760138288846,0.15764939,1105.8,1103.1,0.60636371]
[1760138289141,0.15764939,1105.8,1103.2,0.60636371]
[1760138289346,0.15764939,1105.8,1103.3,0.6071439]
[1760138289646,0.15764939,1105.8,1103.4,0.6071439]
[1760138289845,0.15764939,1105.8,1103.5,0.6071439]
[1760138290145,0.15764939,1105.8,1103.6,0.6071439]
[1760138290341,2.19486829,1108.0,1102.7,0.67937931]
[1760138290546,2.19486829,1108.0,1102.8,0.60576626]
[1760138290743,2.19486829,1107.7,1102.9,0.60576626]
[1760138290942,2.19486829,1107.7,1103.0,0.60576626]
[1760138291148,2.19486829,1107.7,1103.1,0.60576626]
[1760138291447,2.19486829,1107.1,1103.2,0.62462929]
[1760138291643,2.19486829,1107.1,1102.2,1.23588187]
[1760138291847,2.19486829,1107.1,1102.3,0.62511941]
[1760138292148,2.19486829,1106.9,1102.4,0.62511941]
[1760138292347,2.19486829,1106.9,1102.5,0.62511941]
[1760138292648,2.19486829,1106.7,1102.6,0.62511941]
[1760138292848,2.19486829,1106.7,1102.7,0.62511941]
[1760138293146,2.19486829,1106.7,1102.8,0.62511941]
[1760138293344,2.19486829,1106.6,1102.9,0.4415786]
[1760138293548,2.19486829,1106.6,1101.8,1.23588187]
[1760138293748,2.19486829,1106.6,1101.6,1.23588187]
[1760138293947,2.19486829,1106.5,1101.6,1.23588187]
[1760138294248,2.19486829,1106.5,1101.8,1.23588187]
[1760138294447,2.19486829,1106.3,1101.8,1.23588187]
[1760138294649,2.19486829,1106.3,1101.6,1.23588187]
[1760138294949,2.19486829,1106.5,1101.5,1.23588187]
[1760138295147,2.19486829,1106.5,1101.4,1.23588187]
[1760138295349,2.19486829,1106.5,1101.3,1.23588187]
[1760138295646,2.19486829,1106.4,1101.2,1.23588187]
[1760138296249,2.19486829,1106.3,1101.3,1.23588187]
[1760138296546,0.15772799,1105.2,1101.3,1.23588187]
[1760138297249,0.15772799,1105.2,1101.5,1.23588187]
[1760138297750,0.15772799,1105.2,1101.2,1.23588187]
[1760138297949,0.15772799,1105.2,1101.5,1.23588187]
[1760138298148,0.15772799,1105.2,1101.1,1.23588187]
[1760138298648,0.15772799,1105.2,1101.7,1.23588187]
[1760138299249,0.15772799,1105.2,1101.9,1.23588187]
[1760138300049,0.15772799,1105.2,1101.8,1.23588187]
[1760138300450,0.15772799,1105.2,1102.2,1.23588187]
[1760138300754,0.15772799,1105.2,1102.1,1.23588187]
[1760138301247,0.15772799,1105.2,1102.0,1.23588187]
[1760138301448,0.15772799,1105.2,1101.9,1.23588187]
[1760138302048,0.15772799,1105.2,1101.8,1.23588187]
[1760138302348,0.15772799,1105.2,1101.9,1.23588187]
[1760138302557,0.15772799,1105.2,1101.8,1.23588187]
[1760138302748,0.15772799,1105.2,1101.9,1.23588187]
[1760138303348,0.15772799,1105.2,1101.8,1.23588187]
[1760138303649,0.15772799,1105.2,1101.5,1.23588187]
[1760138303949,0.15772799,1105.2,1101.9,1.23588187]
[1760138304250,0.15772799,1105.2,1102.6,1.23588187]
[1760138305152,0.15772799,1105.2,1100.4,2.05980311]
[1760138305452,0.15772799,1105.2,1101.6,1.28839126]
[1760138305654,0.15772799,1105.2,1101.7,0.57104636]
[1760138305855,0.15772799,1105.2,1101.8,0.57104636]
[1760138306152,0.15772799,1105.2,1101.9,0.57104636]
[1760138306356,0.15772799,1105.2,1102.7,1.28839126]
[1760138306555,0.15772799,1105.2,1103.2,1.28839126]
[1760138306752,0.15772799,1105.2,1103.3,0.57104636]
[1760138307052,0.15772799,1105.2,1103.4,0.57104636]
[1760138307253,0.15772799,1105.2,1103.5,0.57104636]
[1760138307556,0.15772799,1105.2,1103.6,0.57104636]
[1760138307755,0.15772799,1105.2,1103.7,0.57104636]
[1760138307957,0.15772799,1105.2,1103.8,0.57104636]
[1760138308156,0.15772799,1105.2,1102.9,1.28839126]
[1760138308353,2.22921092,1107.4,1103.0,0.42978132]
[1760138308555,2.22921092,1107.4,1102.6,1.28839126]
[1760138308854,2.22921092,1108.1,1102.6,1.28839126]
[1760138309157,2.22921092,1108.1,1102.1,1.28839126]
[1760138309355,2.22921092,1108.1,1102.7,1.28839126]
[1760138309855,2.22921092,1106.8,1102.5,1.28839126]
[1760138310056,2.22921092,1107.5,1102.8,1.28839126]
[1760138310258,2.22921092,1107.5,1102.4,1.28839126]
[1760138310654,1.33627964,1106.0,1102.6,1.28839126]
[1760138310856,1.33627964,1106.5,1102.7,1.28839126]
[1760138311056,1.33627964,1106.4,1102.7,1.28839126]
[1760138311255,0.15752309,1105.6,1102.6,1.28839126]
[1760138311458,0.15752309,1105.6,1102.9,1.28839126]
[1760138311656,0.15752309,1105.6,1103.0,1.28839126]
[1760138311956,0.15752309,1105.6,1103.3,1.28839126]
[1760138312559,0.15752309,1105.6,1103.5,1.28839126]
[1760138312857,0.15752309,1105.6,1103.4,1.28839126]
[1760138313356,0.15752309,1105.6,1103.1,1.28839126]
[1760138313764,0.15752309,1105.6,1103.5,1.28839126]
[1760138314259,0.15752309,1105.6,1103.6,1.28839126]
[1760138314460,0.15752309,1105.6,1103.7,1.28839126]
[1760138314760,0.15752309,1105.6,1103.6,1.28839126]
[1760138315162,0.15752309,1105.6,1103.7,1.28839126]
[1760138315366,0.15752309,1105.6,1104.0,1.28839126]
[1760138315565,0.15752309,1105.6,1103.9,1.28839126]
[1760138315862,0.15752309,1105.6,1103.6,1.28839126]
[1760138316165,0.15752309,1105.6,1103.1,1.28839126]
[1760138316461,0.15752309,1105.6,1103.2,1.28839126]
[1760138316964,0.15752309,1105.6,1103.3,1.28839126]
[1760138317162,0.15752309,1105.6,1103.8,1.28839126]
[1760138317465,0.15752309,1105.6,1103.7,1.28839126]
[1760138317762,0.15752309,1105.6,1103.6,1.28839126]
[1760138317965,0.15752309,1105.6,1103.7,1.28839126]
[1760138318265,0.15752309,1105.6,1103.4,1.28839126]
[1760138318465,0.15752309,1105.6,1103.1,1.28839126]
[1760138318966,0.15752309,1105.6,1102.7,1.28839126]
[1760138319270,0.15752309,1105.6,1102.6,1.28839126]
[1760138319667,0.15752309,1105.6,1103.1,1.28839126]
[1760138320067,0.15752309,1105.6,1103.4,1.28839126]
[1760138320367,0.15752309,1105.6,1103.5,1.41092086]
[1760138320568,0.15752309,1105.6,1103.6,0.56986163]
[1760138320768,0.15752309,1105.6,1103.7,0.56986163]
[1760138320967,0.15752309,1105.6,1103.5,0.84105923]
[1760138320968,0.15752309,1105.6,1103.8,0.56986163]
[1760138321171,0.15752309,1105.6,1103.9,0.56986163]
[1760138321372,0.15752309,1105.6,1104.0,0.56986163]
[1760138321673,0.15752309,1105.6,1103.5,0.84105923]
[1760138321873,0.15752309,1105.6,1103.6,1.41159655]
[1760138322072,0.15752309,1105.6,1103.7,0.57053732]
[1760138322274,0.15752309,1105.6,1103.8,0.57053732]
[1760138322471,0.15752309,1105.6,1103.9,0.57053732]
[1760138322670,0.15752309,1105.6,1104.0,0.57053732]
[1760138322869,0.15752309,1105.6,1104.1,1.2005559]
[1760138323169,0.15752309,1105.6,1104.2,0.57053732]
[1760138323374,0.15752309,1105.6,1104.3,0.57053732]
[1760138323569,0.15752309,1105.6,1104.4,0.57053732]
[1760138323777,0.15752309,1105.6,1104.0,0.63001858]
[1760138323970,0.15752309,1105.6,1104.1,0.56562162]
[1760138324275,0.15752309,1105.6,1104.2,0.56562162]
[1760138324469,0.15752309,1105.6,1104.3,0.56562162]
[1760138324772,0.15752309,1105.6,1104.4,0.56562162]
[1760138324971,0.15752309,1105.6,1104.5,0.56562162]
[1760138325271,0.15752309,1105.6,1104.1,0.63001858]
[1760138325471,0.15752309,1105.6,1104.2,0.55559275]
[1760138325671,0.15752309,1105.6,1104.3,0.55559275]
[1760138325875,0.15752309,1105.6,1104.4,0.55559275]
[1760138326076,0.15752309,1105.6,1104.5,0.55559275]
[1760138326270,0.15752309,1105.6,1103.5,0.63001858]
[1760138326475,0.15752309,1105.6,1103.6,1.19133495]
[1760138326673,0.15752309,1105.6,1103.7,1.19133495]
[1760138326876,0.15752309,1105.6,1103.9,0.63001858]
[1760138327174,0.15752309,1105.6,1104.0,0.56131637]
[1760138327377,0.15752309,1105.6,1104.1,0.56140115]
[1760138327572,0.15752309,1105.6,1104.2,0.56140115]
[1760138327776,0.15752309,1105.6,1104.3,0.56134617]
[1760138327972,0.15752309,1105.6,1104.4,0.56134617]
[1760138328272,0.15752309,1105.6,1104.5,0.56134617]
[1760138328472,0.15752309,1105.6,1104.6,0.56134617]
[1760138328672,0.15752309,1105.6,1104.7,0.56134617]
[1760138328875,0.15752309,1105.6,1104.8,0.56134617]
[1760138329076,0.15752309,1105.6,1104.9,1.19136475]
[1760138329274,0.15752309,1105.6,1105.0,0.56134617]
[1760138329476,0.15752309,1105.6,1105.1,0.56134617]
[1760138329676,0.15752309,1105.6,1105.2,0.56134617]
[1760138329873,0.15752309,1105.6,1105.3,0.56134617]
[1760138330077,2.22921092,1110.2,1105.3,0.63001858]
[1760138330272,4.38973659,1111.0,1105.2,0.56134617]
[1760138330273,2.22921092,1111.0,1105.7,0.63001858]
[1760138330572,2.22921092,1111.0,1105.8,0.56134617]
[1760138330776,0.15712799,1109.0,1105.8,1.19136475]
[1760138331077,2.22921092,1111.2,1105.9,0.56134617]
[1760138331472,2.22921092,1111.2,1106.0,0.56134617]
[1760138331774,2.22921092,1111.4,1105.6,0.63001858]
[1760138331977,2.22921092,1111.4,1105.7,0.56729837]
[1760138332172,0.1570865,1110.0,1105.8,0.56729837]
[1760138332374,0.1570865,1110.0,1105.4,0.63001858]
[1760138332675,0.1570865,1110.0,1105.5,0.56671966]
[1760138332873,0.1570865,1110.0,1105.6,0.56671966]
[1760138333077,0.1570865,1110.0,1105.0,0.63001858]
[1760138333078,0.1570865,1110.0,1104.7,0.63001858]
[1760138333374,0.1570865,1110.0,1104.8,0.56653115]
[1760138333575,0.1570865,1110.0,1104.9,0.56653115]
[1760138333774,0.1570865,1110.0,1105.1,0.63001858]
[1760138333974,0.1570865,1110.0,1104.9,0.84105923]
[1760138333975,0.1570865,1110.0,1105.2,1.19654973]
[1760138334178,0.1570865,1110.0,1105.3,0.56653115]
[1760138334478,0.1570865,1110.0,1105.4,0.56653115]
[1760138334676,0.1570865,1110.0,1105.0,0.63001858]
[1760138334874,0.1570865,1110.0,1105.2,0.63001858]
[1760138335081,0.1570865,1110.0,1105.3,0.56470459]
[1760138335376,0.1570865,1110.0,1105.4,0.56470459]
[1760138335580,0.1570865,1110.0,1105.5,0.56470459]
[1760138335780,0.1570865,1110.0,1104.9,0.63001858]
[1760138336079,0.1570865,1110.0,1105.0,1.19443371]
[1760138336278,0.1570865,1110.0,1105.1,0.56441513]
[1760138336579,0.1570865,1110.0,1104.6,0.63001858]
[1760138336780,0.1570865,1110.0,1104.7,0.56395379]
[1760138337083,0.1570865,1110.0,1104.8,0.56395379]
[1760138337380,0.1570865,1110.0,1104.9,0.63001858]
[1760138337578,0.1570865,1110.0,1105.0,0.56395379]
[1760138337785,0.1570865,1110.0,1105.1,0.56395379]
[1760138337989,0.1570865,1110.0,1104.7,2.273]
[1760138338289,0.1570865,1110.0,1104.8,0.56411051]
[1760138338488,0.1570865,1110.0,1104.9,0.56411051]
[1760138338689,0.1570865,1110.0,1104.7,2.273]
[1760138341489,0.1570865,1110.0,1104.8,0.56396451]
[1760138341692,0.1570865,1110.0,1104.9,0.56417546]
[1760138341890,0.1570865,1110.0,1105.0,0.56417546]
[1760138342095,0.1570865,1110.0,1105.1,0.56417546]
[1760138342296,0.1570865,1110.0,1104.7,2.273]
[1760138342496,0.1570865,1110.0,1104.8,0.56285212]
[1760138342691,0.1570865,1110.0,1104.7,2.273]
[1760138342893,0.1570865,1110.0,1104.8,0.56265862]
[1760138343791,0.1570865,1110.0,1104.9,0.63001858]
[1760138343997,0.1570865,1110.0,1104.7,2.273]
[1760138345095,0.1570865,1110.0,1104.8,1.2163257]
[1760138345396,0.1570865,1110.0,1104.9,0.60381042]
[1760138345799,0.1570865,1110.0,1105.0,0.60381042]
[1760138346097,0.1570865,1110.0,1105.1,0.60381042]
[1760138346295,0.1570865,1110.0,1105.2,0.60381042]
[1760138346495,0.1570865,1110.0,1105.3,0.60381042]
[1760138346699,0.1570865,1110.0,1105.4,0.60381042]
[1760138346899,0.1570865,1110.0,1105.5,0.60381042]
[1760138347099,0.1570865,1110.0,1104.7,2.88551528]
[1760138347300,0.1570865,1110.0,1104.8,0.60494984]
[1760138347500,0.1570865,1110.0,1105.0,0.61251528]
[1760138347700,0.1570865,1110.0,1105.2,0.61251528]
[1760138347901,0.1570865,1110.0,1105.3,1.21746512]
[1760138348103,0.1570865,1110.0,1105.4,1.21746512]
[1760138348401,0.1570865,1110.0,1105.5,0.60494984]
[1760138348603,0.1570865,1110.0,1105.6,0.60494984]
[1760138348798,0.1570865,1110.0,1105.7,0.60494984]
[1760138349003,0.1570865,1110.0,1105.8,0.60391474]
[1760138349201,0.1570865,1110.0,1105.9,0.60391474]
[1760138349399,0.1570865,1110.0,1106.0,0.60391474]
[1760138349604,0.1570865,1110.0,1105.3,0.61251528]
[1760138349805,0.1570865,1110.0,1105.4,0.60452925]
[1760138350104,0.1570865,1110.0,1105.5,1.21704453]
[1760138350304,0.1570865,1110.0,1105.6,0.60452925]
[1760138350502,0.1570865,1110.0,1105.7,0.60452925]
[1760138350706,0.1570865,1110.0,1105.8,0.60452925]
[1760138350905,0.1570865,1110.0,1105.3,0.61251528]
[1760138351106,0.1570865,1110.0,1105.4,0.6035122]
[1760138351405,0.1570865,1110.0,1105.3,0.61251528]
[1760138351406,0.1570865,1110.0,1105.6,0.61251528]
[1760138351603,0.1570865,1110.0,1105.7,0.6035122]
[1760138351804,0.1570865,1110.0,1105.8,0.6035122]
[1760138352108,0.1570865,1110.0,1105.9,0.6035122]
[1760138352305,0.1570865,1110.0,1106.0,0.6035122]
[1760138352508,0.1570865,1110.0,1106.1,0.6035122]
[1760138352708,0.1570865,1110.0,1106.2,0.6035122]
[1760138353008,0.1570865,1110.0,1106.5,0.61251528]
[1760138353207,0.1570865,1110.0,1105.8,0.61251528]
[1760138353708,0.1570865,1110.0,1106.1,0.61251528]
[1760138354004,0.1570865,1110.0,1106.2,0.60490361]
[1760138354208,0.1570865,1110.0,1105.5,0.61251528]
[1760138354410,0.1570865,1110.0,1105.6,0.60442288]
[1760138354609,0.1570865,1110.0,1105.7,0.60442288]
[1760138354908,0.1570865,1110.0,1105.8,0.60442288]
[1760138355111,0.1570865,1110.0,1105.9,0.60442288]
[1760138355308,0.1570865,1110.0,1106.0,0.60688444]
[1760138355610,0.1570865,1110.0,1106.2,0.61251528]
[1760138355809,0.1570865,1110.0,1106.3,0.60688444]
[1760138356014,0.1570865,1110.0,1106.4,0.60688444]
[1760138356212,0.1570865,1110.0,1106.0,0.61251528]
[1760138356510,0.1570865,1110.0,1106.1,0.60769078]
[1760138356710,0.1570865,1110.0,1106.2,0.60769078]
[1760138356912,0.1570865,1110.0,1105.9,0.61251528]
[1760138357115,0.1570865,1110.0,1106.0,0.60836814]
[1760138357413,0.1570865,1110.0,1105.1,0.61251528]
[1760138357814,0.1570865,1110.0,1104.7,2.273]
[1760138358114,0.1570865,1110.0,1104.8,0.56645554]
[1760138358414,0.1570865,1110.0,1104.7,2.273]
[1760138358815,2.22921092,1109.9,1104.7,2.273]
[1760138359109,0.1570865,1110.0,1104.7,2.273]
[1760138359511,2.38629742,1110.0,1104.7,2.273]
[1760138360017,2.22921092,1109.0,1104.7,2.11567062]
[1760138360616,2.22921092,1108.3,1104.7,2.11567062]
[1760138361316,2.22921092,1108.7,1104.7,2.11567062]
[1760138361716,2.22921092,1108.3,1104.7,2.11567062]
[1760138362118,3.07281561,1107.8,1104.7,2.11567062]
[1760138362417,2.22921092,1107.6,1104.7,2.11567062]
[1760138362612,2.22921092,1108.0,1104.7,2.11567062]
[1760138362817,2.22921092,1108.4,1104.7,2.11567062]
[1760138363018,2.22921092,1108.6,1104.7,1.95825228]
[1760138363518,2.22921092,1108.3,1104.7,1.95825228]
[1760138363914,2.22921092,1108.5,1104.7,1.95825228]
[1760138364119,2.22921092,1109.5,1104.7,1.95825228]
[1760138364519,2.22921092,1109.2,1104.7,1.95825228]
[1760138365216,2.22921092,1109.9,1104.7,1.95825228]
[1760138365721,2.22921092,1109.5,1104.7,1.95825228]
[1760138366117,0.15728458,1108.7,1104.7,1.95825228]
[1760138366718,2.22921092,1109.1,1104.7,1.80090334]
[1760138367121,2.22921092,1109.2,1104.7,1.80090334]
[1760138367421,2.22921092,1109.4,1104.7,1.80090334]
[1760138367817,2.22921092,1109.6,1104.7,1.80090334]
[1760138368220,2.22921092,1108.9,1104.7,1.80090334]
[1760138368620,2.22921092,1109.3,1104.7,1.80090334]
[1760138369028,2.22921092,1109.6,1103.7,0.61251528]
[1760138369221,5.30202653,1109.7,1103.9,0.61251528]
[1760138369422,2.22921092,1110.0,1104.2,0.61251528]
[1760138369620,2.22921092,1109.8,1104.4,0.61251528]
[1760138369822,0.15726788,1108.3,1104.4,0.61251528]
[1760138370021,2.22921092,1109.9,1104.4,0.61251528]
[1760138370225,0.15725189,1107.4,1104.4,0.61251528]
[1760138370426,0.15725189,1107.4,1104.6,0.61251528]
[1760138370630,2.22921092,1110.1,1104.7,0.56259178]
[1760138370829,0.15723803,1106.7,1104.8,0.56259178]
[1760138371026,2.22921092,1110.4,1104.9,0.56259178]
[1760138371227,2.22921092,1110.4,1105.0,0.56259178]
[1760138371429,2.22921092,1110.4,1104.6,0.61251528]
[1760138371430,0.15720287,1106.3,1105.1,0.56259178]
[1760138371629,2.22921092,1110.3,1104.6,0.61251528]
[1760138371833,0.15722205,1106.1,1104.7,0.56348361]
[1760138372029,0.15722205,1106.1,1104.1,0.61251528]
[1760138372230,2.22921092,1110.2,1104.2,0.56369649]
[1760138372429,0.15727108,1105.7,1104.3,0.56369649]
[1760138372635,2.22921092,1110.1,1104.4,0.56369649]
[1760138372934,0.15728636,1105.4,1104.5,0.56413423]
[1760138373134,2.22921092,1109.6,1104.0,0.61251528]
[1760138373336,2.22921092,1109.3,1104.3,0.61251528]
[1760138373635,0.15727783,1105.2,1104.4,0.56385975]
[1760138373835,2.22921092,1108.7,1103.4,0.61251528]
[1760138374030,0.15735784,1105.1,1103.4,0.61251528]
[1760138374330,2.22921092,1109.0,1103.3,1.17661001]
[1760138374531,0.15745324,1104.7,1103.4,0.56409473]
[1760138374830,2.22921092,1109.0,1103.4,0.56409473]
[1760138375035,0.15743365,1104.4,1102.8,0.61251528]
[1760138375330,2.22921092,1108.8,1102.9,1.17808113]
[1760138375535,0.15747141,1104.1,1103.0,0.56556585]
[1760138375834,2.22921092,1108.7,1103.1,0.56556585]
[1760138376034,2.22921092,1108.3,1103.2,0.56555845]
[1760138376230,0.1574853,1103.9,1102.5,0.61251528]
[1760138376433,2.22921092,1108.4,1103.1,0.61251528]
[1760138376632,0.15747105,1103.7,1103.5,0.61251528]
[1760138376833,0.15747105,1103.7,1103.6,0.56549603]
[1760138377133,0.15743507,1103.7,1103.6,1.17801131]
[1760138377435,2.22921092,1108.4,1103.6,0.56549603]
[1760138377736,0.15740623,1103.9,1103.7,1.17801131]
[1760138377934,3.07281561,1109.5,1103.8,0.56549603]
[1760138378137,3.07281561,1109.5,1103.8,0.62584644]
[1760138378333,0.15734965,1104.4,1103.9,1.19134247]
[1760138378534,2.22921092,1109.4,1104.1,0.62584644]
[1760138378737,2.22921092,1109.4,1104.2,0.56549603]
[1760138379034,2.22921092,1109.4,1103.7,0.62584644]
[1760138379237,2.22921092,1109.0,1103.8,0.5631896]
[1760138379438,0.15734183,1108.2,1103.9,0.5631896]
[1760138379634,0.15734183,1108.2,1104.2,0.62584644]
[1760138379838,0.15734183,1108.2,1104.3,1.18903604]
[1760138380134,0.15734183,1108.2,1104.1,0.84105923]
[1760138380135,0.15734183,1108.2,1104.6,0.62584644]
[1760138380338,0.15734183,1108.2,1105.6,0.62584644]
[1760138380538,0.15734183,1108.2,1105.0,0.62584644]
[1760138380736,0.15734183,1108.2,1105.1,0.59485185]
[1760138381035,0.15734183,1108.2,1105.2,0.59485185]
[1760138381238,0.15734183,1108.2,1105.3,0.59485185]
[1760138381437,0.15734183,1108.2,1104.8,0.62584644]
[1760138381636,0.15734183,1108.2,1104.9,1.22267967]
[1760138381840,0.15734183,1108.2,1105.0,0.59683323]
[1760138382036,0.15734183,1108.2,1105.1,0.59683323]
[1760138382244,0.15734183,1108.2,1104.7,0.62584644]
[1760138382538,0.15734183,1108.2,1104.8,0.59705075]
[1760138382843,0.15734183,1108.2,1104.4,0.62584644]
[1760138383038,0.15734183,1108.2,1104.6,0.62584644]
[1760138383238,0.15734183,1108.2,1104.8,0.62584644]
[1760138383537,0.15734183,1108.2,1104.9,0.59771983]
[1760138383739,0.15734183,1108.2,1105.4,0.62584644]
[1760138383939,0.15734183,1108.2,1105.5,1.22356627]
[1760138384140,0.15734183,1108.2,1105.6,0.59771983]
[1760138384342,0.15734183,1108.2,1105.7,0.59771983]
[1760138384538,0.15734183,1108.2,1105.9,0.62584644]